[Event "*** SCC Grand Prix: Titled Tuesday Blitz"]
[Site "Chess.com"]
[Date "2020.07.07"]
[Round "8"]
[White "zajka-molotok"]
[Black "FMKonstantin_Twitch"]
[Result "1-0"]
[WhiteElo "2436"]
[BlackElo "2548"]
[TimeControl "180+1"]
[EndTime "11:37:09 PDT"]
[Termination "zajka-molotok won by resignation"]

1. c4 {[%clk 0:03:00.9]} 1... Nf6 {[%clk 0:02:16.5]} 2. Nc3 {[%clk 0:02:58]}
2... g6 {[%clk 0:02:12.4]} 3. e4 {[%clk 0:02:57.1]} 3... d6 {[%clk 0:02:13.3]}
4. g3 {[%clk 0:02:56.4]} 4... Bg7 {[%clk 0:02:13.6]} 5. Bg2 {[%clk 0:02:56.5]}
5... O-O {[%clk 0:02:14.3]} 6. f4 {[%clk 0:02:56.7]} 6... e5 {[%clk 0:02:13.7]}
7. d3 {[%clk 0:02:55.2]} 7... c6 {[%clk 0:02:11.5]} 8. Nf3 {[%clk 0:02:54.3]}
8... b5 {[%clk 0:02:06.4]} 9. cxb5 {[%clk 0:02:39.6]} 9... cxb5 {[%clk
0:02:07.3]} 10. O-O {[%clk 0:02:37.6]} 10... b4 {[%clk 0:02:06]} 11. Ne2 {[%clk
0:02:28.4]} 11... Qb6+ {[%clk 0:02:05]} 12. Kh1 {[%clk 0:02:27.7]} 12... Ng4
{[%clk 0:02:05]} 13. d4 {[%clk 0:02:12.3]} 13... exd4 {[%clk 0:02:03]} 14. Nfxd4
{[%clk 0:01:42.4]} 14... Ba6 {[%clk 0:02:01.6]} 15. h3 {[%clk 0:01:15.6]} 15...
Bxd4 {[%clk 0:01:37.9]} 16. Nxd4 {[%clk 0:00:55.8]} 16... Bxf1 {[%clk
0:01:36.3]} 17. Qxf1 {[%clk 0:00:53.8]} 17... Qxd4 {[%clk 0:01:35.4]} 18. hxg4
{[%clk 0:00:53.5]} 18... Nd7 {[%clk 0:01:35.9]} 19. Qe2 {[%clk 0:00:47.7]} 19...
Rae8 {[%clk 0:01:27.7]} 20. Be3 {[%clk 0:00:47.5]} 20... Rxe4 {[%clk 0:01:26.6]}
21. Re1 {[%clk 0:00:40.9]} 21... Rfe8 {[%clk 0:01:23.2]} 22. Bxe4 {[%clk
0:00:30]} 22... Qxe4+ {[%clk 0:01:22.2]} 23. Qg2 {[%clk 0:00:30.7]} 23... Nc5
{[%clk 0:01:18.8]} 24. Qxe4 {[%clk 0:00:24.9]} 24... Rxe4 {[%clk 0:01:17.4]} 25.
Kg2 {[%clk 0:00:21.1]} 25... Nd3 {[%clk 0:01:15.4]} 26. Re2 {[%clk 0:00:21.4]}
26... d5 {[%clk 0:01:08.3]} 27. Kf3 {[%clk 0:00:20.9]} 27... a5 {[%clk
0:01:03.6]} 28. Rd2 {[%clk 0:00:20.6]} 28... Ne1+ {[%clk 0:01:00.2]} 29. Kf2
{[%clk 0:00:20.5]} 29... a4 {[%clk 0:00:31.7]} 30. b3 {[%clk 0:00:20.3]} 30...
axb3 {[%clk 0:00:29.6]} 31. axb3 {[%clk 0:00:21.2]} 31... h5 {[%clk 0:00:27.2]}
32. gxh5 {[%clk 0:00:20.7]} 32... gxh5 {[%clk 0:00:28.1]} 33. Bc5 {[%clk
0:00:19.2]} 33... Nc2 {[%clk 0:00:28.4]} 34. Rxc2 {[%clk 0:00:18.3]} 34... h4
{[%clk 0:00:25.6]} 35. Bd6 {[%clk 0:00:16]} 35... hxg3+ {[%clk 0:00:25.2]} 36.
Kxg3 {[%clk 0:00:15.9]} 36... Re3+ {[%clk 0:00:25.5]} 37. Kg4 {[%clk 0:00:16.2]}
37... Rxb3 {[%clk 0:00:26]} 38. Rd2 {[%clk 0:00:15.6]} 38... Rb1 {[%clk
0:00:23.9]} 39. Rxd5 {[%clk 0:00:15.7]} 39... b3 {[%clk 0:00:24.1]} 40. Kf5
{[%clk 0:00:15.8]} 40... Rh1 {[%clk 0:00:16.8]} 41. Be5 {[%clk 0:00:14.5]} 41...
Rh5+ {[%clk 0:00:12.2]} 42. Ke4 {[%clk 0:00:14.4]} 42... Kh7 {[%clk 0:00:09.8]}
43. Rd7 {[%clk 0:00:13]} 43... Kg6 {[%clk 0:00:08.7]} 44. Rb7 {[%clk 0:00:12.7]}
44... Rh3 {[%clk 0:00:07.6]} 45. f5+ {[%clk 0:00:11.3]} 45... Kg5 {[%clk
0:00:08.1]} 46. Bf4+ {[%clk 0:00:11.2]} 46... Kg4 {[%clk 0:00:07.8]} 47. f6
{[%clk 0:00:08.8]} 47... Rh7 {[%clk 0:00:06.6]} 48. Be5 {[%clk 0:00:08.1]} 48...
Kh5 {[%clk 0:00:06.3]} 49. Rxb3 {[%clk 0:00:07.8]} 49... Kg6 {[%clk 0:00:06.4]}
50. Rg3+ {[%clk 0:00:07.8]} 50... Kh6 {[%clk 0:00:06.7]} 51. Rh3+ {[%clk
0:00:07.9]} 51... Kg6 {[%clk 0:00:06.9]} 52. Rxh7 {[%clk 0:00:07.7]} 52... Kxh7
{[%clk 0:00:07.8]} 53. Kd5 {[%clk 0:00:07.2]} 53... Kg6 {[%clk 0:00:07.7]} 54.
Kd6 {[%clk 0:00:07.2]} 54... Kf5 {[%clk 0:00:07.7]} 55. Bb2 {[%clk 0:00:06.8]}
55... Kg6 {[%clk 0:00:07.5]} 56. Ke7 {[%clk 0:00:07.2]} 1-0

[Event "*** SCC Grand Prix: Titled Tuesday Blitz"]
[Site "Chess.com"]
[Date "2020.07.07"]
[Round "8"]
[White "TokChess"]
[Black "AlexSuv"]
[Result "1/2-1/2"]
[WhiteElo "2428"]
[BlackElo "2561"]
[TimeControl "180+1"]
[EndTime "11:37:16 PDT"]
[Termination "Game drawn - insufficient material"]

1. Nf3 {[%clk 0:03:00.9]} 1... d5 {[%clk 0:02:54.9]} 2. g3 {[%clk 0:03:00.8]}
2... c6 {[%clk 0:02:53.9]} 3. Bg2 {[%clk 0:03:01.1]} 3... Nf6 {[%clk 0:02:52.3]}
4. O-O {[%clk 0:03:01.6]} 4... Bg4 {[%clk 0:02:48.2]} 5. d4 {[%clk 0:03:02]}
5... Nbd7 {[%clk 0:02:46.7]} 6. Nbd2 {[%clk 0:03:02.2]} 6... e6 {[%clk
0:02:46.9]} 7. Re1 {[%clk 0:03:02.3]} 7... Be7 {[%clk 0:02:45.3]} 8. e4 {[%clk
0:03:02.4]} 8... O-O {[%clk 0:02:42.7]} 9. c3 {[%clk 0:03:02.1]} 9... c5 {[%clk
0:02:39.4]} 10. exd5 {[%clk 0:02:59.6]} 10... Nxd5 {[%clk 0:02:38.7]} 11. Qb3
{[%clk 0:02:58.8]} 11... cxd4 {[%clk 0:02:31.2]} 12. cxd4 {[%clk 0:02:51.1]}
12... Qb6 {[%clk 0:02:26.1]} 13. Nc4 {[%clk 0:02:18.9]} 13... Qxb3 {[%clk
0:02:25.4]} 14. axb3 {[%clk 0:02:19.1]} 14... Bb4 {[%clk 0:02:07.1]} 15. Bd2
{[%clk 0:02:08.7]} 15... Bxd2 {[%clk 0:02:00.7]} 16. Nfxd2 {[%clk 0:02:09.2]}
16... N7f6 {[%clk 0:01:56.5]} 17. Ne5 {[%clk 0:02:01.6]} 17... Bf5 {[%clk
0:01:54.8]} 18. Rec1 {[%clk 0:01:59.1]} 18... a6 {[%clk 0:01:51.2]} 19. Ndc4
{[%clk 0:01:58.2]} 19... Rfd8 {[%clk 0:01:43.8]} 20. Na5 {[%clk 0:01:56.6]}
20... Rab8 {[%clk 0:01:36.9]} 21. Bf3 {[%clk 0:01:37.6]} 21... Be4 {[%clk
0:01:30.2]} 22. Kg2 {[%clk 0:01:34.1]} 22... g6 {[%clk 0:01:22.1]} 23. Rc4
{[%clk 0:01:11.9]} 23... Bxf3+ {[%clk 0:01:10.3]} 24. Kxf3 {[%clk 0:01:11.7]}
24... Nd7 {[%clk 0:01:10.7]} 25. Rac1 {[%clk 0:00:45.1]} 25... N7b6 {[%clk
0:01:04.2]} 26. Rc5 {[%clk 0:00:35.3]} 26... Kg7 {[%clk 0:00:56.8]} 27. Nac4
{[%clk 0:00:34.4]} 27... Nd7 {[%clk 0:00:52]} 28. Ra5 {[%clk 0:00:34.3]} 28...
N7f6 {[%clk 0:00:46.2]} 29. Ne3 {[%clk 0:00:26.1]} 29... Rbc8 {[%clk 0:00:33.5]}
30. Rac5 {[%clk 0:00:23.8]} 30... Rxc5 {[%clk 0:00:33.1]} 31. Rxc5 {[%clk
0:00:24.4]} 31... Kf8 {[%clk 0:00:30.4]} 32. h4 {[%clk 0:00:22.2]} 32... h5
{[%clk 0:00:30]} 33. N3c4 {[%clk 0:00:19.1]} 33... Ke7 {[%clk 0:00:26.1]} 34.
Ra5 {[%clk 0:00:16.6]} 34... Nb4 {[%clk 0:00:19.7]} 35. Rc5 {[%clk 0:00:14.7]}
35... Nfd5 {[%clk 0:00:18.5]} 36. Ne3 {[%clk 0:00:13.8]} 36... Rg8 {[%clk
0:00:15.7]} 37. Rc4 {[%clk 0:00:13.1]} 37... f6 {[%clk 0:00:15.8]} 38. Nxd5+
{[%clk 0:00:10.7]} 38... exd5 {[%clk 0:00:16.1]} 39. Rxb4 {[%clk 0:00:10.5]}
39... fxe5 {[%clk 0:00:16.2]} 40. Rxb7+ {[%clk 0:00:10.7]} 40... Kf6 {[%clk
0:00:15.5]} 41. Rb6+ {[%clk 0:00:10.6]} 41... Kf5 {[%clk 0:00:15.8]} 42. dxe5
{[%clk 0:00:10]} 42... Kxe5 {[%clk 0:00:16.7]} 43. Rxa6 {[%clk 0:00:09.5]} 43...
Rb8 {[%clk 0:00:17.1]} 44. Rxg6 {[%clk 0:00:08.3]} 44... Rxb3+ {[%clk
0:00:17.3]} 45. Kg2 {[%clk 0:00:08.8]} 45... Rxb2 {[%clk 0:00:18.2]} 46. Rg5+
{[%clk 0:00:09.3]} 46... Ke4 {[%clk 0:00:18.9]} 47. Rxh5 {[%clk 0:00:09.9]}
47... d4 {[%clk 0:00:19.6]} 48. Rh8 {[%clk 0:00:10.4]} 48... d3 {[%clk 0:00:20]}
49. Re8+ {[%clk 0:00:10.9]} 49... Kd4 {[%clk 0:00:20.2]} 50. Rd8+ {[%clk
0:00:10.8]} 50... Kc3 {[%clk 0:00:20.6]} 51. h5 {[%clk 0:00:11.2]} 51... d2
{[%clk 0:00:21]} 52. g4 {[%clk 0:00:11.7]} 52... Rb4 {[%clk 0:00:20.8]} 53. Rxd2
{[%clk 0:00:09.5]} 53... Kxd2 {[%clk 0:00:20.3]} 54. Kg3 {[%clk 0:00:10.1]}
54... Kd3 {[%clk 0:00:19]} 55. f3 {[%clk 0:00:08.5]} 55... Kd4 {[%clk
0:00:17.5]} 56. f4 {[%clk 0:00:06.8]} 56... Ke4 {[%clk 0:00:16.7]} 57. h6 {[%clk
0:00:07.2]} 57... Rb3+ {[%clk 0:00:16.4]} 58. Kh4 {[%clk 0:00:07.2]} 58... Kxf4
{[%clk 0:00:16.2]} 59. h7 {[%clk 0:00:07.4]} 59... Rb1 {[%clk 0:00:15.4]} 60.
Kh5 {[%clk 0:00:07.6]} 60... Rh1+ {[%clk 0:00:15.1]} 61. Kg6 {[%clk 0:00:07.7]}
61... Kxg4 {[%clk 0:00:15.5]} 62. Kg7 {[%clk 0:00:07.9]} 62... Rxh7+ {[%clk
0:00:15.5]} 63. Kxh7 {[%clk 0:00:07.8]} 1/2-1/2

[Event "*** SCC Grand Prix: Titled Tuesday Blitz"]
[Site "Chess.com"]
[Date "2020.07.07"]
[Round "8"]
[White "snap_man"]
[Black "CroissantNeuf"]
[Result "1-0"]
[WhiteElo "2309"]
[BlackElo "2401"]
[TimeControl "180+1"]
[EndTime "11:37:16 PDT"]
[Termination "snap_man won on time"]

1. Nf3 {[%clk 0:03:00.9]} 1... Nf6 {[%clk 0:02:58.7]} 2. g3 {[%clk 0:03:01.1]}
2... g6 {[%clk 0:02:57.8]} 3. b3 {[%clk 0:03:01.6]} 3... Bg7 {[%clk 0:02:57.7]}
4. Bb2 {[%clk 0:03:01.9]} 4... O-O {[%clk 0:02:56.6]} 5. Bg2 {[%clk 0:03:02.4]}
5... d5 {[%clk 0:02:52.1]} 6. O-O {[%clk 0:03:02.3]} 6... c5 {[%clk 0:02:43.4]}
7. d3 {[%clk 0:03:02.4]} 7... Re8 {[%clk 0:02:28.9]} 8. Nbd2 {[%clk 0:02:57]}
8... Nc6 {[%clk 0:02:24.4]} 9. Ne5 {[%clk 0:02:56.7]} 9... Nd4 {[%clk
0:02:17.9]} 10. c4 {[%clk 0:02:45.5]} 10... Ng4 {[%clk 0:02:10.7]} 11. Bxd4
{[%clk 0:02:28.9]} 11... cxd4 {[%clk 0:01:53.8]} 12. Nxg4 {[%clk 0:02:28.4]}
12... Bxg4 {[%clk 0:01:54.3]} 13. Bxd5 {[%clk 0:02:27.8]} 13... Qd7 {[%clk
0:01:52.7]} 14. b4 {[%clk 0:02:07.8]} 14... Rac8 {[%clk 0:01:38.8]} 15. Nb3
{[%clk 0:02:07.5]} 15... b6 {[%clk 0:01:24.7]} 16. a4 {[%clk 0:02:07.1]} 16...
h5 {[%clk 0:01:16.9]} 17. a5 {[%clk 0:02:04.5]} 17... b5 {[%clk 0:01:13.4]} 18.
Nc5 {[%clk 0:02:03]} 18... Qf5 {[%clk 0:01:07.7]} 19. Be4 {[%clk 0:01:58.2]}
19... Qg5 {[%clk 0:01:06]} 20. h4 {[%clk 0:01:57.7]} 20... Qe5 {[%clk
0:01:01.1]} 21. cxb5 {[%clk 0:01:52]} 21... f5 {[%clk 0:00:54.8]} 22. Bf3 {[%clk
0:01:49.5]} 22... f4 {[%clk 0:00:48.7]} 23. Kg2 {[%clk 0:01:22.2]} 23... g5
{[%clk 0:00:46.9]} 24. Qd2 {[%clk 0:01:11]} 24... Bh6 {[%clk 0:00:37.1]} 25.
Bxg4 {[%clk 0:01:01.8]} 25... hxg4 {[%clk 0:00:35]} 26. h5 {[%clk 0:01:02.3]}
26... f3+ {[%clk 0:00:27.4]} 27. exf3 {[%clk 0:00:54.6]} 27... gxf3+ {[%clk
0:00:26.7]} 28. Kh2 {[%clk 0:00:45.2]} 28... Kg7 {[%clk 0:00:18.7]} 29. Rae1
{[%clk 0:00:44.3]} 29... Qf5 {[%clk 0:00:16]} 30. Ne6+ {[%clk 0:00:44.4]} 30...
Kh7 {[%clk 0:00:15.9]} 31. Nxd4 {[%clk 0:00:44.6]} 31... Qg4 {[%clk 0:00:15.2]}
32. Qe3 {[%clk 0:00:21.7]} 32... Qxh5+ {[%clk 0:00:14.1]} 33. Kg1 {[%clk
0:00:22.1]} 33... g4 {[%clk 0:00:13.9]} 34. Qe4+ {[%clk 0:00:21.7]} 34... Kh8
{[%clk 0:00:13.9]} 35. Qe5+ {[%clk 0:00:20.4]} 35... Qxe5 {[%clk 0:00:13.9]} 36.
Rxe5 {[%clk 0:00:21.3]} 36... Bg7 {[%clk 0:00:13.6]} 37. Re4 {[%clk 0:00:21.2]}
37... Rcd8 {[%clk 0:00:11.8]} 38. Ne6 {[%clk 0:00:20.2]} 38... Rxd3 {[%clk
0:00:12.3]} 39. Nxg7 {[%clk 0:00:20.3]} 39... Kxg7 {[%clk 0:00:12.1]} 40. Rxg4+
{[%clk 0:00:21]} 40... Kf6 {[%clk 0:00:12.7]} 41. Re1 {[%clk 0:00:14.5]} 41...
e5 {[%clk 0:00:11.3]} 42. Rh4 {[%clk 0:00:10.4]} 42... Kf5 {[%clk 0:00:11.1]}
43. Rh5+ {[%clk 0:00:09.7]} 43... Kf6 {[%clk 0:00:08.6]} 44. b6 {[%clk
0:00:08.7]} 44... axb6 {[%clk 0:00:07.8]} 45. Rh6+ {[%clk 0:00:09.1]} 45... Kf5
{[%clk 0:00:07.6]} 46. Rxb6 {[%clk 0:00:09.1]} 46... Rd2 {[%clk 0:00:06.4]} 47.
a6 {[%clk 0:00:08.1]} 47... Rc8 {[%clk 0:00:04.3]} 48. Rb5 {[%clk 0:00:06.6]}
48... Re8 {[%clk 0:00:02.1]} 49. a7 {[%clk 0:00:06.1]} 49... Re2 {[%clk
0:00:01.8]} 50. Kf1 {[%clk 0:00:04.5]} 1-0

[Event "*** SCC Grand Prix: Titled Tuesday Blitz"]
[Site "Chess.com"]
[Date "2020.07.07"]
[Round "8"]
[White "Thee-Chessboy"]
[Black "VovenRogel"]
[Result "0-1"]
[WhiteElo "2542"]
[BlackElo "2729"]
[TimeControl "180+1"]
[EndTime "11:37:17 PDT"]
[Termination "VovenRogel won by resignation"]

1. d4 {[%clk 0:03:00.9]} 1... Nf6 {[%clk 0:02:55.1]} 2. c4 {[%clk 0:03:00.7]}
2... g6 {[%clk 0:02:49.6]} 3. Nf3 {[%clk 0:03:01]} 3... Bg7 {[%clk 0:02:49.1]}
4. g3 {[%clk 0:03:01.6]} 4... O-O {[%clk 0:02:48.6]} 5. Bg2 {[%clk 0:03:02.2]}
5... d6 {[%clk 0:02:48.9]} 6. O-O {[%clk 0:03:02.6]} 6... c5 {[%clk 0:02:48.2]}
7. Nc3 {[%clk 0:03:02.8]} 7... Nc6 {[%clk 0:02:48]} 8. dxc5 {[%clk 0:03:03]}
8... dxc5 {[%clk 0:02:47.8]} 9. Be3 {[%clk 0:03:03.6]} 9... Qb6 {[%clk
0:02:41.2]} 10. Na4 {[%clk 0:03:01.7]} 10... Qc7 {[%clk 0:02:36.9]} 11. Bxc5
{[%clk 0:02:59.8]} 11... Rd8 {[%clk 0:02:24]} 12. Qc1 {[%clk 0:02:48.4]} 12...
Bf5 {[%clk 0:02:09.9]} 13. Be3 {[%clk 0:02:39.2]} 13... Ng4 {[%clk 0:02:07.2]}
14. Bd2 {[%clk 0:02:33.8]} 14... Rac8 {[%clk 0:01:57.9]} 15. Nc3 {[%clk
0:02:22.7]} 15... Nb4 {[%clk 0:01:41.2]} 16. b3 {[%clk 0:01:58.5]} 16... Nc2
{[%clk 0:01:35.4]} 17. Rb1 {[%clk 0:01:57.8]} 17... Nb4 {[%clk 0:01:21.4]} 18.
e4 {[%clk 0:01:41.8]} 18... Nd3 {[%clk 0:01:19.1]} 19. Qc2 {[%clk 0:01:39.6]}
19... Nb4 {[%clk 0:01:06.5]} 20. Qc1 {[%clk 0:01:35.8]} 20... Nd3 {[%clk
0:01:03.4]} 21. Qa3 {[%clk 0:01:28.8]} 21... Bxc3 {[%clk 0:00:56.8]} 22. Bxc3
{[%clk 0:01:26.2]} 22... Bxe4 {[%clk 0:00:54.9]} 23. Nd4 {[%clk 0:00:47]} 23...
Bxg2 {[%clk 0:00:51.6]} 24. Kxg2 {[%clk 0:00:47.9]} 24... e5 {[%clk 0:00:47.6]}
25. Nc2 {[%clk 0:00:43.9]} 25... Qc6+ {[%clk 0:00:46.4]} 26. f3 {[%clk
0:00:43.7]} 26... a6 {[%clk 0:00:33.8]} 27. Rbd1 {[%clk 0:00:37.2]} 27... Rd7
{[%clk 0:00:26.5]} 28. h3 {[%clk 0:00:31.7]} 28... Nf6 {[%clk 0:00:25.1]} 29.
Ne3 {[%clk 0:00:19.8]} 29... Rcd8 {[%clk 0:00:24.6]} 30. Kh2 {[%clk 0:00:09.4]}
30... b5 {[%clk 0:00:19.6]} 31. Qa5 {[%clk 0:00:06.9]} 31... h5 {[%clk
0:00:15.3]} 32. h4 {[%clk 0:00:05.6]} 32... Kh7 {[%clk 0:00:13.6]} 33. cxb5
{[%clk 0:00:05.6]} 33... axb5 {[%clk 0:00:12.7]} 34. Ba1 {[%clk 0:00:06.1]}
34... Ra8 {[%clk 0:00:10]} 35. Qd2 {[%clk 0:00:05.5]} 35... Nc5 {[%clk
0:00:06.7]} 36. Qg2 {[%clk 0:00:05.1]} 36... Rda7 {[%clk 0:00:06.6]} 37. Rd2
{[%clk 0:00:04.2]} 37... Ncd7 {[%clk 0:00:06.6]} 38. Rfd1 {[%clk 0:00:04.1]}
38... Qe6 {[%clk 0:00:06.4]} 39. Nd5 {[%clk 0:00:03.2]} 39... Nxd5 {[%clk
0:00:05.9]} 40. Rxd5 {[%clk 0:00:04.1]} 40... Rxa2 {[%clk 0:00:06.6]} 41. R5d2
{[%clk 0:00:04.7]} 41... Rxa1 {[%clk 0:00:06.8]} 42. Rxd7 {[%clk 0:00:04.8]}
42... R1a2 {[%clk 0:00:06.9]} 43. R1d2 {[%clk 0:00:05]} 43... Qxb3 {[%clk
0:00:06.3]} 44. Rxa2 {[%clk 0:00:04]} 44... Rxa2 {[%clk 0:00:06.9]} 45. Rd2
{[%clk 0:00:04.6]} 45... Rxd2 {[%clk 0:00:07.1]} 46. Qxd2 {[%clk 0:00:05.5]}
46... Qxf3 {[%clk 0:00:08]} 47. Qb2 {[%clk 0:00:06]} 47... e4 {[%clk 0:00:08.1]}
48. Qxb5 {[%clk 0:00:05.3]} 48... e3 {[%clk 0:00:08.4]} 49. Qb2 {[%clk
0:00:04.7]} 49... e2 {[%clk 0:00:07.5]} 50. Qd2 {[%clk 0:00:04.8]} 50... Qf2+
{[%clk 0:00:07.1]} 0-1

[Event "*** SCC Grand Prix: Titled Tuesday Blitz"]
[Site "Chess.com"]
[Date "2020.07.07"]
[Round "8"]
[White "XiaoKangZhong"]
[Black "Thipsay"]
[Result "1/2-1/2"]
[WhiteElo "2402"]
[BlackElo "2518"]
[TimeControl "180+1"]
[EndTime "11:37:17 PDT"]
[Termination "Game drawn by repetition"]

1. e4 {[%clk 0:02:59.1]} 1... e5 {[%clk 0:02:59.7]} 2. Nf3 {[%clk 0:02:50.8]}
2... Nc6 {[%clk 0:02:59.8]} 3. Bc4 {[%clk 0:02:48.7]} 3... Nf6 {[%clk
0:02:59.2]} 4. d3 {[%clk 0:02:48.3]} 4... Be7 {[%clk 0:02:58.9]} 5. O-O {[%clk
0:02:47.2]} 5... O-O {[%clk 0:02:59]} 6. Nbd2 {[%clk 0:02:46.8]} 6... d5 {[%clk
0:02:57.1]} 7. exd5 {[%clk 0:02:46.8]} 7... Nxd5 {[%clk 0:02:57.2]} 8. Ne4
{[%clk 0:02:47.4]} 8... Kh8 {[%clk 0:02:51.8]} 9. Nfg5 {[%clk 0:02:23.6]} 9...
f6 {[%clk 0:02:39.7]} 10. Nxh7 {[%clk 0:01:37.3]} 10... Kxh7 {[%clk 0:02:39]}
11. Qh5+ {[%clk 0:01:36.8]} 11... Kg8 {[%clk 0:02:38.9]} 12. Nc3 {[%clk
0:01:37.2]} 12... Be6 {[%clk 0:02:35.8]} 13. Qf3 {[%clk 0:01:36]} 13... Nd4
{[%clk 0:02:25.3]} 14. Qe4 {[%clk 0:01:28]} 14... Nxc3 {[%clk 0:02:15.4]} 15.
Bxe6+ {[%clk 0:01:18.5]} 15... Nxe6 {[%clk 0:02:14.7]} 16. bxc3 {[%clk
0:01:19.1]} 16... c6 {[%clk 0:02:09.9]} 17. Qc4 {[%clk 0:01:16.4]} 17... Qd5
{[%clk 0:02:09.5]} 18. Qg4 {[%clk 0:01:15]} 18... f5 {[%clk 0:02:06.2]} 19. Qh5
{[%clk 0:01:13.7]} 19... f4 {[%clk 0:01:40.9]} 20. Bd2 {[%clk 0:01:06.7]} 20...
f3 {[%clk 0:01:25]} 21. g3 {[%clk 0:01:03.6]} 21... e4 {[%clk 0:01:23.6]} 22.
Qg4 {[%clk 0:00:51.7]} 22... exd3 {[%clk 0:01:16]} 23. Rfe1 {[%clk 0:00:51.3]}
23... Rf6 {[%clk 0:01:09.5]} 24. cxd3 {[%clk 0:00:47]} 24... Bc5 {[%clk
0:00:52.4]} 25. d4 {[%clk 0:00:39.3]} 25... Bb6 {[%clk 0:00:52]} 26. Re5 {[%clk
0:00:36.1]} 26... Qd6 {[%clk 0:00:48.1]} 27. Rae1 {[%clk 0:00:33.6]} 27... Nf8
{[%clk 0:00:28.2]} 28. Re7 {[%clk 0:00:25.5]} 28... Rf7 {[%clk 0:00:25.8]} 29.
Rxf7 {[%clk 0:00:25.4]} 29... Kxf7 {[%clk 0:00:25.9]} 30. Qxf3+ {[%clk
0:00:25.5]} 30... Kg8 {[%clk 0:00:24.6]} 31. Qg4 {[%clk 0:00:24.9]} 31... Qd7
{[%clk 0:00:18]} 32. Qxd7 {[%clk 0:00:24.3]} 32... Nxd7 {[%clk 0:00:17.4]} 33.
Re7 {[%clk 0:00:25]} 33... Rd8 {[%clk 0:00:17]} 34. Bf4 {[%clk 0:00:24.9]} 34...
Kf8 {[%clk 0:00:16.4]} 35. Bd6 {[%clk 0:00:24.2]} 35... Kg8 {[%clk 0:00:12.2]}
36. Ba3 {[%clk 0:00:20.6]} 36... c5 {[%clk 0:00:09.8]} 37. d5 {[%clk 0:00:20.3]}
37... c4 {[%clk 0:00:09.2]} 38. d6 {[%clk 0:00:16.3]} 38... Nf6 {[%clk 0:00:09]}
39. Rxb7 {[%clk 0:00:16]} 39... Ne4 {[%clk 0:00:08.8]} 40. d7 {[%clk 0:00:15.2]}
40... Nf6 {[%clk 0:00:08.7]} 41. Be7 {[%clk 0:00:11]} 41... Rxd7 {[%clk
0:00:08.8]} 42. Rb8+ {[%clk 0:00:11.3]} 42... Kf7 {[%clk 0:00:08.5]} 43. Bxf6
{[%clk 0:00:11.7]} 43... Kxf6 {[%clk 0:00:08.5]} 44. Rc8 {[%clk 0:00:11.8]}
44... Rd2 {[%clk 0:00:08.3]} 45. Rxc4 {[%clk 0:00:10.9]} 45... Rxf2 {[%clk
0:00:08.4]} 46. Rc6+ {[%clk 0:00:09.9]} 46... Kg5 {[%clk 0:00:07.4]} 47. Rxb6
{[%clk 0:00:10.3]} 47... Rxa2 {[%clk 0:00:07.8]} 48. Rb5+ {[%clk 0:00:10.3]}
48... Kg4 {[%clk 0:00:07.8]} 49. Rb4+ {[%clk 0:00:10.7]} 49... Kf3 {[%clk
0:00:06.9]} 50. Rf4+ {[%clk 0:00:10.9]} 50... Ke3 {[%clk 0:00:07.1]} 51. Rf7
{[%clk 0:00:07.2]} 51... a5 {[%clk 0:00:07.3]} 52. Rxg7 {[%clk 0:00:07.6]} 52...
a4 {[%clk 0:00:07.8]} 53. Ra7 {[%clk 0:00:07.6]} 53... a3 {[%clk 0:00:08]} 54.
Ra6 {[%clk 0:00:07]} 54... Kd3 {[%clk 0:00:08.1]} 55. c4 {[%clk 0:00:06.7]}
55... Kxc4 {[%clk 0:00:08]} 56. Ra8 {[%clk 0:00:07.3]} 56... Kb3 {[%clk
0:00:05.8]} 57. Rb8+ {[%clk 0:00:06.9]} 57... Kc3 {[%clk 0:00:05.8]} 58. Rc8+
{[%clk 0:00:06.9]} 58... Kb3 {[%clk 0:00:05.2]} 59. Rb8+ {[%clk 0:00:06.9]}
59... Kc3 {[%clk 0:00:05.5]} 60. Rc8+ {[%clk 0:00:07]} 60... Kb3 {[%clk
0:00:05.7]} 61. Rb8+ {[%clk 0:00:07.4]} 1/2-1/2